[Event "Titled Tuesday Blitz November 14 Late 2023"]
[White "Perske, Thore"]
[Black "Szyszylo, Rafal"]
[WhiteFideId "12902195"]
[BlackFideId "1109626"]
[WhiteElo "2617"]
[BlackElo "2403"]
[Result "1-0"]
[Round "4"]
[TimeControl "180+1"]
[Date "2023.11.14"]
[WhiteClock "0:02:22"]
[BlackClock "0:01:57"]
[Board "101"]

1. d4 {[%clk 0:02:57]}  d6 {[%clk 0:02:59]} 2. g3 {[%clk 0:02:58]}  g6 {[%clk 0:02:59]} 3. Bg2 {[%clk 0:02:58]}  Bg7 {[%clk 0:03:00]} 4. e4 {[%clk 0:02:58]}  Nf6 {[%clk 0:03:01]} 5. Nc3 {[%clk 0:02:58]}  Nc6 {[%clk 0:03:00]} 6. Nge2 {[%clk 0:02:59]}  O-O {[%clk 0:03:00]} 7. h3 {[%clk 0:02:59]}  e5 {[%clk 0:03:01]} 8. Be3 {[%clk 0:03:00]}  exd4 {[%clk 0:03:00]} 9. Nxd4 {[%clk 0:03:01]}  Bd7 {[%clk 0:03:00]} 10. O-O {[%clk 0:03:01]}  Re8 {[%clk 0:03:00]} 11. Qd2 {[%clk 0:03:01]}  a6 {[%clk 0:02:59]} 12. a4 {[%clk 0:03:01]}  Ne5 {[%clk 0:02:45]} 13. b3 {[%clk 0:02:52]}  Rb8 {[%clk 0:02:41]} 14. f4 {[%clk 0:02:47]}  c6 {[%clk 0:02:26]} 15. fxe5 {[%clk 0:02:39]}  dxe5 {[%clk 0:02:26]} 16. Nde2 {[%clk 0:02:37]}  b5 {[%clk 0:02:11]} 17. axb5 {[%clk 0:02:32]}  axb5 {[%clk 0:02:11]} 18. Rad1 {[%clk 0:02:26]}  b4 {[%clk 0:02:07]} 19. Na4 {[%clk 0:02:26]}  Qa5 {[%clk 0:02:03]} 20. Rxf6 {[%clk 0:02:22]}  Bxf6 {[%clk 0:01:57]} 21. Qxd7 {[%clk 0:02:22]} 1-0


[Site "https://www.chess.com"]

[Event "Titled Tuesday Blitz November 14 Late 2023"]
[White "ArtemDyachuk"]
[Black "Kujawski, Adam"]
[BlackFideId "1100920"]
[WhiteElo "2616"]
[BlackElo "2403"]
[Result "1-0"]
[Round "4"]
[TimeControl "180+1"]
[Date "2023.11.14"]
[WhiteClock "0:00:43"]
[BlackClock "0:00:00"]
[Board "102"]

1. e4 {[%clk 0:03:00]}  e5 {[%clk 0:02:49]} 2. Nf3 {[%clk 0:03:00]}  Nc6 {[%clk 0:02:49]} 3. Bc4 {[%clk 0:02:57]}  Nf6 {[%clk 0:02:49]} 4. d3 {[%clk 0:02:56]}  d5 {[%clk 0:02:49]} 5. exd5 {[%clk 0:02:56]}  Nxd5 {[%clk 0:02:49]} 6. O-O {[%clk 0:02:56]}  Nb6 {[%clk 0:02:49]} 7. Bb3 {[%clk 0:02:55]}  Bg4 {[%clk 0:02:48]} 8. Nbd2 {[%clk 0:02:41]}  Qe7 {[%clk 0:02:47]} 9. Re1 {[%clk 0:02:37]}  O-O-O {[%clk 0:02:44]} 10. Nf1 {[%clk 0:02:37]}  f6 {[%clk 0:02:43]} 11. Ng3 {[%clk 0:02:36]}  Nd4 {[%clk 0:02:21]} 12. c3 {[%clk 0:02:23]}  Nxf3+ {[%clk 0:02:15]} 13. gxf3 {[%clk 0:02:19]}  Bh3 {[%clk 0:01:58]} 14. d4 {[%clk 0:02:14]}  Kb8 {[%clk 0:01:53]} 15. Be3 {[%clk 0:02:11]}  h5 {[%clk 0:01:50]} 16. Kh1 {[%clk 0:01:59]}  h4 {[%clk 0:01:49]} 17. Ne4 {[%clk 0:01:57]}  Qe8 {[%clk 0:00:59]} 18. a4 {[%clk 0:01:52]}  Qg6 {[%clk 0:00:39]} 19. Rg1 {[%clk 0:01:50]}  Qf5 {[%clk 0:00:37]} 20. Bc2 {[%clk 0:01:48]}  Qe6 {[%clk 0:00:20]} 21. Bb3 {[%clk 0:01:37]}  Qf5 {[%clk 0:00:13]} 22. a5 {[%clk 0:01:30]}  Nd5 {[%clk 0:00:12]} 23. dxe5 {[%clk 0:01:30]}  Be7 {[%clk 0:00:07]} 24. Qe2 {[%clk 0:01:22]}  fxe5 {[%clk 0:00:05]} 25. Rad1 {[%clk 0:01:20]}  Nxe3 {[%clk 0:00:05]} 26. fxe3 {[%clk 0:01:21]}  Rxd1 {[%clk 0:00:04]} 27. Rxd1 {[%clk 0:01:22]}  Rd8 {[%clk 0:00:03]} 28. Rxd8+ {[%clk 0:01:14]}  Bxd8 {[%clk 0:00:04]} 29. Bc2 {[%clk 0:01:15]}  Qd7 {[%clk 0:00:03]} 30. Nf2 {[%clk 0:01:15]}  Be6 {[%clk 0:00:02]} 31. Be4 {[%clk 0:01:10]}  g5 {[%clk 0:00:03]} 32. Nd3 {[%clk 0:01:06]}  Qd6 {[%clk 0:00:02]} 33. a6 {[%clk 0:01:04]}  bxa6 {[%clk 0:00:01]} 34. Nb4 {[%clk 0:01:04]}  Qb6 {[%clk 0:00:02]} 35. Nxa6+ {[%clk 0:01:01]}  Kc8 {[%clk 0:00:02]} 36. Nb4 {[%clk 0:01:02]}  a5 {[%clk 0:00:02]} 37. Nd5 {[%clk 0:01:01]}  Qd6 {[%clk 0:00:02]} 38. Qc4 {[%clk 0:00:58]}  Bxd5 {[%clk 0:00:01]} 39. Bxd5 {[%clk 0:00:57]}  Be7 {[%clk 0:00:02]} 40. Qg4+ {[%clk 0:00:54]}  Kb8 {[%clk 0:00:01]} 41. Qc4 {[%clk 0:00:53]}  Kc8 {[%clk 0:00:01]} 42. Kg2 {[%clk 0:00:52]}  Qb6 {[%clk 0:00:00]} 43. Qg4+ {[%clk 0:00:43]} 1-0


[Site "https://www.chess.com"]

[Event "Titled Tuesday Blitz November 14 Late 2023"]
[White "Marchesich, Giovanni"]
[Black "Santos Flores, Alberto"]
[WhiteFideId "2824790"]
[BlackFideId "3601234"]
[WhiteElo "2401"]
[BlackElo "2569"]
[Result "0-1"]
[Round "4"]
[TimeControl "180+1"]
[Date "2023.11.14"]
[WhiteClock "0:00:00"]
[BlackClock "0:00:15"]
[Board "104"]

1. e4 {[%clk 0:03:00]}  e6 {[%clk 0:02:59]} 2. d4 {[%clk 0:03:00]}  d5 {[%clk 0:02:59]} 3. Nc3 {[%clk 0:03:00]}  Nf6 {[%clk 0:02:59]} 4. Bg5 {[%clk 0:02:57]}  Bb4 {[%clk 0:02:58]} 5. e5 {[%clk 0:02:51]}  h6 {[%clk 0:02:57]} 6. Bd2 {[%clk 0:02:49]}  Bxc3 {[%clk 0:02:57]} 7. bxc3 {[%clk 0:02:49]}  Ne4 {[%clk 0:02:58]} 8. Qg4 {[%clk 0:02:48]}  Kf8 {[%clk 0:02:58]} 9. Bc1 {[%clk 0:02:46]}  c5 {[%clk 0:02:54]} 10. Bd3 {[%clk 0:02:36]}  Nxc3 {[%clk 0:02:50]} 11. dxc5 {[%clk 0:02:33]}  Nc6 {[%clk 0:02:42]} 12. Nf3 {[%clk 0:02:30]}  Qa5 {[%clk 0:02:28]} 13. O-O {[%clk 0:02:25]}  Qxc5 {[%clk 0:02:28]} 14. a4 {[%clk 0:02:25]}  a5 {[%clk 0:02:11]} 15. Be3 {[%clk 0:02:05]}  Qe7 {[%clk 0:01:58]} 16. Bd2 {[%clk 0:01:47]}  Qc5 {[%clk 0:01:44]} 17. Be3 {[%clk 0:01:46]}  Qb4 {[%clk 0:01:35]} 18. Qh5 {[%clk 0:01:38]}  Bd7 {[%clk 0:01:30]} 19. Bd2 {[%clk 0:01:33]}  Qc5 {[%clk 0:01:28]} 20. Be3 {[%clk 0:01:33]}  d4 {[%clk 0:01:28]} 21. Nxd4 {[%clk 0:01:25]}  Nxd4 {[%clk 0:01:25]} 22. Qg4 {[%clk 0:01:22]}  Nde2+ {[%clk 0:00:46]} 23. Bxe2 {[%clk 0:01:21]}  Nxe2+ {[%clk 0:00:47]} 24. Qxe2 {[%clk 0:01:20]}  Qxe5 {[%clk 0:00:47]} 25. Rfd1 {[%clk 0:01:00]}  Bc6 {[%clk 0:00:47]} 26. Rd4 {[%clk 0:00:44]}  Kg8 {[%clk 0:00:43]} 27. Qd3 {[%clk 0:00:36]}  Qf5 {[%clk 0:00:29]} 28. Qxf5 {[%clk 0:00:19]}  exf5 {[%clk 0:00:30]} 29. Rf4 {[%clk 0:00:20]}  Bd7 {[%clk 0:00:24]} 30. Rd1 {[%clk 0:00:19]}  Be6 {[%clk 0:00:24]} 31. Rb1 {[%clk 0:00:17]}  Rc8 {[%clk 0:00:20]} 32. Rxb7 {[%clk 0:00:09]}  Rxc2 {[%clk 0:00:20]} 33. h4 {[%clk 0:00:09]}  Kh7 {[%clk 0:00:20]} 34. Ra7 {[%clk 0:00:09]}  Ra2 {[%clk 0:00:16]} 35. Rxa5 {[%clk 0:00:09]}  Rc8 {[%clk 0:00:16]} 36. Ra7 {[%clk 0:00:05]}  Rcc2 {[%clk 0:00:16]} 37. Kh2 {[%clk 0:00:04]}  g5 {[%clk 0:00:16]} 38. Rb4 {[%clk 0:00:00]}  f4 {[%clk 0:00:15]} 0-1


[Site "https://www.chess.com"]

[Event "Titled Tuesday Blitz November 14 Late 2023"]
[White "Abduzhaparov"]
[Black "Tikhonov, Viacheslav"]
[BlackFideId "44196407"]
[WhiteElo "2398"]
[BlackElo "2567"]
[Result "0-1"]
[Round "4"]
[TimeControl "180+1"]
[Date "2023.11.14"]
[WhiteClock "0:00:04"]
[BlackClock "0:00:19"]
[Board "105"]

1. Nf3 {[%clk 0:03:00]}  g6 {[%clk 0:02:58]} 2. c4 {[%clk 0:03:01]}  Bg7 {[%clk 0:02:58]} 3. e4 {[%clk 0:03:00]}  c5 {[%clk 0:02:49]} 4. d4 {[%clk 0:03:00]}  Nf6 {[%clk 0:02:36]} 5. Nc3 {[%clk 0:02:59]}  Nc6 {[%clk 0:02:34]} 6. d5 {[%clk 0:02:58]}  Nd4 {[%clk 0:02:33]} 7. Nxd4 {[%clk 0:02:55]}  cxd4 {[%clk 0:02:34]} 8. Qxd4 {[%clk 0:02:55]}  O-O {[%clk 0:02:33]} 9. Bg5 {[%clk 0:02:51]}  d6 {[%clk 0:02:32]} 10. Qd2 {[%clk 0:02:48]}  Qb6 {[%clk 0:02:26]} 11. Be2 {[%clk 0:02:37]}  Re8 {[%clk 0:02:25]} 12. O-O {[%clk 0:02:36]}  Nd7 {[%clk 0:02:23]} 13. Rac1 {[%clk 0:02:33]}  Qa5 {[%clk 0:02:19]} 14. Rfd1 {[%clk 0:02:18]}  Nc5 {[%clk 0:02:10]} 15. f3 {[%clk 0:02:01]}  Bd7 {[%clk 0:01:44]} 16. Nb5 {[%clk 0:01:53]}  Qxa2 {[%clk 0:00:58]} 17. Ra1 {[%clk 0:01:25]}  Qxb2 {[%clk 0:00:57]} 18. Nc7 {[%clk 0:01:12]}  Qxd2 {[%clk 0:00:42]} 19. Bxd2 {[%clk 0:01:12]}  Bxa1 {[%clk 0:00:43]} 20. Rxa1 {[%clk 0:01:03]}  Nb3 {[%clk 0:00:43]} 21. Ra2 {[%clk 0:01:01]}  Nxd2 {[%clk 0:00:42]} 22. Nxe8 {[%clk 0:00:57]}  Bxe8 {[%clk 0:00:40]} 23. Rxd2 {[%clk 0:00:56]}  a5 {[%clk 0:00:37]} 24. Ra2 {[%clk 0:00:53]}  a4 {[%clk 0:00:31]} 25. Ra3 {[%clk 0:00:53]}  f5 {[%clk 0:00:27]} 26. Kf2 {[%clk 0:00:53]}  fxe4 {[%clk 0:00:27]} 27. fxe4 {[%clk 0:00:54]}  Kf7 {[%clk 0:00:28]} 28. Ke3 {[%clk 0:00:54]}  Kf6 {[%clk 0:00:28]} 29. Kd4 {[%clk 0:00:53]}  Ra5 {[%clk 0:00:28]} 30. Bd1 {[%clk 0:00:52]}  b5 {[%clk 0:00:26]} 31. cxb5 {[%clk 0:00:48]}  Rxb5 {[%clk 0:00:22]} 32. Kc4 {[%clk 0:00:33]}  Ke5 {[%clk 0:00:18]} 33. Bxa4 {[%clk 0:00:20]}  Ra5 {[%clk 0:00:18]} 34. Kb4 {[%clk 0:00:08]}  Rxa4+ {[%clk 0:00:18]} 35. Rxa4 {[%clk 0:00:09]}  Bxa4 {[%clk 0:00:18]} 36. Kxa4 {[%clk 0:00:04]}  Kxe4 {[%clk 0:00:19]} 0-1


[Site "https://www.chess.com"]

[Event "Titled Tuesday Blitz November 14 Late 2023"]
[White "Mushini Ajay"]
[Black "Tologon tegin, Semetei"]
[WhiteFideId "35066188"]
[BlackFideId "13800574"]
[WhiteElo "2398"]
[BlackElo "2561"]
[Result "1-0"]
[Round "4"]
[TimeControl "180+1"]
[Date "2023.11.14"]
[WhiteClock "0:00:16"]
[BlackClock "0:00:17"]
[Board "107"]

1. b3 {[%clk 0:03:00]}  d5 {[%clk 0:02:51]} 2. Bb2 {[%clk 0:03:01]}  c5 {[%clk 0:02:51]} 3. e3 {[%clk 0:03:01]}  a6 {[%clk 0:02:52]} 4. f4 {[%clk 0:03:00]}  Nc6 {[%clk 0:02:52]} 5. Nf3 {[%clk 0:03:01]}  Bg4 {[%clk 0:02:51]} 6. Be2 {[%clk 0:03:01]}  e6 {[%clk 0:02:50]} 7. O-O {[%clk 0:03:00]}  Nf6 {[%clk 0:02:50]} 8. Ne5 {[%clk 0:02:57]}  Bxe2 {[%clk 0:02:49]} 9. Qxe2 {[%clk 0:02:58]}  Rc8 {[%clk 0:02:44]} 10. d3 {[%clk 0:02:57]}  Be7 {[%clk 0:02:43]} 11. Nd2 {[%clk 0:02:56]}  O-O {[%clk 0:02:43]} 12. Ndf3 {[%clk 0:02:56]}  Nd7 {[%clk 0:02:43]} 13. Nxc6 {[%clk 0:02:53]}  Rxc6 {[%clk 0:02:44]} 14. Ne5 {[%clk 0:02:53]}  Rc8 {[%clk 0:02:42]} 15. Qh5 {[%clk 0:02:46]}  f6 {[%clk 0:02:37]} 16. Nxd7 {[%clk 0:02:40]}  Qxd7 {[%clk 0:02:37]} 17. Rad1 {[%clk 0:02:25]}  Qc6 {[%clk 0:02:34]} 18. c4 {[%clk 0:02:22]}  dxc4 {[%clk 0:02:32]} 19. dxc4 {[%clk 0:02:21]}  Rcd8 {[%clk 0:02:32]} 20. Qf3 {[%clk 0:02:16]}  Qxf3 {[%clk 0:02:31]} 21. gxf3 {[%clk 0:02:16]}  Kf7 {[%clk 0:02:30]} 22. Kf2 {[%clk 0:02:15]}  f5 {[%clk 0:02:20]} 23. e4 {[%clk 0:02:12]}  Bf6 {[%clk 0:02:19]} 24. Bxf6 {[%clk 0:02:10]}  Kxf6 {[%clk 0:02:20]} 25. Ke2 {[%clk 0:02:05]}  h6 {[%clk 0:02:00]} 26. e5+ {[%clk 0:02:00]}  Kf7 {[%clk 0:01:58]} 27. h4 {[%clk 0:01:49]}  Rg8 {[%clk 0:01:56]} 28. h5 {[%clk 0:01:43]}  Ke7 {[%clk 0:01:56]} 29. Rg1 {[%clk 0:01:29]}  Rxd1 {[%clk 0:01:51]} 30. Rxd1 {[%clk 0:01:28]}  Rd8 {[%clk 0:01:49]} 31. Rxd8 {[%clk 0:01:11]}  Kxd8 {[%clk 0:01:50]} 32. a3 {[%clk 0:01:08]}  Ke7 {[%clk 0:01:46]} 33. Ke3 {[%clk 0:01:02]}  Kf7 {[%clk 0:01:45]} 34. Kf2 {[%clk 0:01:01]}  Ke8 {[%clk 0:01:35]} 35. Ke2 {[%clk 0:01:00]}  Kd7 {[%clk 0:01:35]} 36. Kd3 {[%clk 0:01:00]}  Kc6 {[%clk 0:01:35]} 37. Kc3 {[%clk 0:01:00]}  Kb6 {[%clk 0:01:29]} 38. Kd3 {[%clk 0:00:51]}  Ka5 {[%clk 0:01:29]} 39. Kc3 {[%clk 0:00:45]}  b6 {[%clk 0:01:23]} 40. Kd3 {[%clk 0:00:31]}  b5 {[%clk 0:01:19]} 41. Kc3 {[%clk 0:00:25]}  Kb6 {[%clk 0:01:14]} 42. cxb5 {[%clk 0:00:19]}  axb5 {[%clk 0:00:43]} 43. a4 {[%clk 0:00:19]}  Ka5 {[%clk 0:00:28]} 44. axb5 {[%clk 0:00:17]}  Kxb5 {[%clk 0:00:29]} 45. Kb2 {[%clk 0:00:17]}  Kb4 {[%clk 0:00:27]} 46. Kc2 {[%clk 0:00:17]}  c4 {[%clk 0:00:28]} 47. bxc4 {[%clk 0:00:17]}  Kxc4 {[%clk 0:00:29]} 48. Kd2 {[%clk 0:00:17]}  Kd4 {[%clk 0:00:28]} 49. Ke2 {[%clk 0:00:17]}  Kc3 {[%clk 0:00:28]} 50. Ke3 {[%clk 0:00:17]}  Kc2 {[%clk 0:00:17]} 51. Kd4 {[%clk 0:00:17]}  Kd2 {[%clk 0:00:18]} 52. Kc5 {[%clk 0:00:18]}  Ke3 {[%clk 0:00:19]} 53. Kd6 {[%clk 0:00:18]}  Kxf3 {[%clk 0:00:16]} 54. Kxe6 {[%clk 0:00:19]}  Kxf4 {[%clk 0:00:17]} 55. Kd6 {[%clk 0:00:18]}  Kg3 {[%clk 0:00:15]} 56. e6 {[%clk 0:00:19]}  f4 {[%clk 0:00:15]} 57. e7 {[%clk 0:00:20]}  f3 {[%clk 0:00:16]} 58. e8=Q {[%clk 0:00:21]}  f2 {[%clk 0:00:17]} 59. Qg6+ {[%clk 0:00:21]}  Kh2 {[%clk 0:00:17]} 60. Qf5 {[%clk 0:00:20]}  Kg1 {[%clk 0:00:16]} 61. Qg4+ {[%clk 0:00:21]}  Kh1 {[%clk 0:00:16]} 62. Qf3+ {[%clk 0:00:21]}  Kg1 {[%clk 0:00:16]} 63. Qg3+ {[%clk 0:00:21]}  Kf1 {[%clk 0:00:16]} 64. Ke5 {[%clk 0:00:19]}  Ke2 {[%clk 0:00:17]} 65. Qg2 {[%clk 0:00:18]}  Ke1 {[%clk 0:00:17]} 66. Qg3 {[%clk 0:00:16]}  Ke2 {[%clk 0:00:17]} 67. Qg4+ {[%clk 0:00:16]}  Ke1 {[%clk 0:00:17]} 68. Qe4+ {[%clk 0:00:16]}  Kd2 {[%clk 0:00:18]} 69. Qf3 {[%clk 0:00:15]}  Ke1 {[%clk 0:00:18]} 70. Qe3+ {[%clk 0:00:16]}  Kf1 {[%clk 0:00:18]} 71. Kf4 {[%clk 0:00:16]}  Kg2 {[%clk 0:00:18]} 72. Qg3+ {[%clk 0:00:16]}  Kh1 {[%clk 0:00:18]} 73. Qxf2 {[%clk 0:00:15]}  g5+ {[%clk 0:00:18]} 74. Kg3 {[%clk 0:00:15]}  g4 {[%clk 0:00:17]} 75. Qh2# {[%clk 0:00:16]} 1-0


[Site "https://www.chess.com"]

[Event "Titled Tuesday Blitz November 14 Late 2023"]
[White "Zakarian, David"]
[Black "Shapiro, Viktor"]
[WhiteFideId "13301276"]
[BlackFideId "4175700"]
[WhiteElo "2391"]
[BlackElo "2557"]
[Result "1-0"]
[Round "4"]
[TimeControl "180+1"]
[Date "2023.11.14"]
[WhiteClock "0:00:28"]
[BlackClock "0:00:05"]
[Board "108"]

1. e4 {[%clk 0:03:00]}  Nf6 {[%clk 0:02:59]} 2. e5 {[%clk 0:03:00]}  Nd5 {[%clk 0:03:00]} 3. c4 {[%clk 0:03:00]}  Nb6 {[%clk 0:03:00]} 4. c5 {[%clk 0:03:00]}  Nd5 {[%clk 0:02:59]} 5. Bc4 {[%clk 0:03:01]}  e6 {[%clk 0:02:59]} 6. Nc3 {[%clk 0:03:01]}  Nxc3 {[%clk 0:02:59]} 7. bxc3 {[%clk 0:03:02]}  d6 {[%clk 0:02:57]} 8. cxd6 {[%clk 0:02:58]}  cxd6 {[%clk 0:02:57]} 9. Nf3 {[%clk 0:02:52]}  Nc6 {[%clk 0:02:57]} 10. Qe2 {[%clk 0:02:39]}  g5 {[%clk 0:02:32]} 11. exd6 {[%clk 0:02:28]}  Bxd6 {[%clk 0:02:29]} 12. d4 {[%clk 0:02:21]}  g4 {[%clk 0:02:29]} 13. Ne5 {[%clk 0:02:16]}  Bxe5 {[%clk 0:02:29]} 14. dxe5 {[%clk 0:02:16]}  Qa5 {[%clk 0:02:29]} 15. O-O {[%clk 0:02:03]}  Qxe5 {[%clk 0:02:27]} 16. Qxg4 {[%clk 0:01:58]}  b5 {[%clk 0:01:54]} 17. Bf4 {[%clk 0:01:40]}  Qc5 {[%clk 0:01:51]} 18. Be2 {[%clk 0:01:28]}  Bb7 {[%clk 0:01:43]} 19. Rfd1 {[%clk 0:01:18]}  Rd8 {[%clk 0:01:37]} 20. Qg7 {[%clk 0:01:11]}  Rf8 {[%clk 0:01:20]} 21. Bh6 {[%clk 0:01:07]}  Rxd1+ {[%clk 0:01:09]} 22. Rxd1 {[%clk 0:01:08]}  a6 {[%clk 0:01:05]} 23. Qxh7 {[%clk 0:00:55]}  Qxc3 {[%clk 0:00:52]} 24. Bxf8 {[%clk 0:00:48]}  Kxf8 {[%clk 0:00:52]} 25. Bf3 {[%clk 0:00:49]}  Na5 {[%clk 0:00:30]} 26. Qh4 {[%clk 0:00:29]}  Bxf3 {[%clk 0:00:07]} 27. Rd8+ {[%clk 0:00:27]}  Kg7 {[%clk 0:00:07]} 28. Qh8+ {[%clk 0:00:27]}  Kg6 {[%clk 0:00:05]} 29. Qxc3 {[%clk 0:00:28]} 1-0


[Site "https://www.chess.com"]

[Event "Titled Tuesday Blitz November 14 Late 2023"]
[White "hristos03"]
[Black "Kashefi, Amir Hosein"]
[BlackFideId "12557935"]
[WhiteElo "2390"]
[BlackElo "2552"]
[Result "0-1"]
[Round "4"]
[TimeControl "180+1"]
[Date "2023.11.14"]
[WhiteClock "0:00:00"]
[BlackClock "0:00:51"]
[Board "109"]

1. e4 {[%clk 0:02:59]}  c5 {[%clk 0:02:59]} 2. Nf3 {[%clk 0:02:57]}  d6 {[%clk 0:02:59]} 3. d4 {[%clk 0:02:57]}  cxd4 {[%clk 0:03:00]} 4. Nxd4 {[%clk 0:02:58]}  Nf6 {[%clk 0:03:00]} 5. Nc3 {[%clk 0:02:59]}  a6 {[%clk 0:03:00]} 6. h3 {[%clk 0:02:59]}  e5 {[%clk 0:03:00]} 7. Nb3 {[%clk 0:02:58]}  Be6 {[%clk 0:02:59]} 8. f4 {[%clk 0:02:58]}  Nc6 {[%clk 0:02:49]} 9. f5 {[%clk 0:02:50]}  Bxb3 {[%clk 0:02:48]} 10. axb3 {[%clk 0:02:50]}  Rc8 {[%clk 0:02:48]} 11. Be3 {[%clk 0:02:46]}  Nb4 {[%clk 0:02:32]} 12. Bg5 {[%clk 0:02:07]}  Be7 {[%clk 0:02:27]} 13. Bxf6 {[%clk 0:02:04]}  Bxf6 {[%clk 0:02:26]} 14. Bc4 {[%clk 0:02:04]}  Bh4+ {[%clk 0:02:26]} 15. Kf1 {[%clk 0:01:58]}  b5 {[%clk 0:02:27]} 16. Bd5 {[%clk 0:01:56]}  Qb6 {[%clk 0:02:27]} 17. Qe2 {[%clk 0:01:40]}  O-O {[%clk 0:02:26]} 18. g3 {[%clk 0:01:13]}  Bxg3 {[%clk 0:02:00]} 19. f6 {[%clk 0:01:09]}  g6 {[%clk 0:01:44]} 20. h4 {[%clk 0:01:02]}  Bf4 {[%clk 0:01:37]} 21. Rh3 {[%clk 0:00:49]}  Kh8 {[%clk 0:01:29]} 22. Kg2 {[%clk 0:00:25]}  Qd8 {[%clk 0:01:27]} 23. h5 {[%clk 0:00:14]}  Qxf6 {[%clk 0:01:23]} 24. hxg6 {[%clk 0:00:15]}  fxg6 {[%clk 0:01:21]} 25. Kh1 {[%clk 0:00:06]}  Rc7 {[%clk 0:01:19]} 26. Rg1 {[%clk 0:00:05]}  Rg7 {[%clk 0:01:15]} 27. Qg2 {[%clk 0:00:03]}  h5 {[%clk 0:01:04]} 28. Ne2 {[%clk 0:00:03]}  Bh6 {[%clk 0:01:04]} 29. Ng3 {[%clk 0:00:02]}  Kh7 {[%clk 0:01:02]} 30. Qh2 {[%clk 0:00:02]}  Qf3+ {[%clk 0:01:00]} 31. Qg2 {[%clk 0:00:02]}  Nxc2 {[%clk 0:00:57]} 32. Qxf3 {[%clk 0:00:01]}  Rxf3 {[%clk 0:00:57]} 33. Rh2 {[%clk 0:00:01]}  Ne3 {[%clk 0:00:54]} 34. Be6 {[%clk 0:00:01]}  Rxg3 {[%clk 0:00:53]} 35. Rxg3 {[%clk 0:00:01]}  Bf4 {[%clk 0:00:54]} 36. Rxh5+ {[%clk 0:00:01]}  gxh5 {[%clk 0:00:54]} 37. Rh3 {[%clk 0:00:02]}  Kh6 {[%clk 0:00:52]} 38. Bd7 {[%clk 0:00:00]}  Rxd7 {[%clk 0:00:51]} 0-1


[Site "https://www.chess.com"]

[Event "Titled Tuesday Blitz November 14 Late 2023"]
[White "Karamsetty, Jeevan"]
[Black "Real_taiatai"]
[WhiteFideId "2025337"]
[WhiteElo "2546"]
[BlackElo "2384"]
[Result "1-0"]
[Round "4"]
[TimeControl "180+1"]
[Date "2023.11.14"]
[WhiteClock "0:01:04"]
[BlackClock "0:00:13"]
[Board "110"]

1. e4 {[%clk 0:03:00]}  e5 {[%clk 0:02:58]} 2. Nf3 {[%clk 0:03:00]}  Nc6 {[%clk 0:02:59]} 3. Bc4 {[%clk 0:03:00]}  Nf6 {[%clk 0:02:58]} 4. O-O {[%clk 0:02:58]}  Nxe4 {[%clk 0:02:55]} 5. Re1 {[%clk 0:02:49]}  d5 {[%clk 0:02:55]} 6. Bb5 {[%clk 0:02:46]}  Be7 {[%clk 0:02:47]} 7. d3 {[%clk 0:02:44]}  Nd6 {[%clk 0:02:46]} 8. Bxc6+ {[%clk 0:02:44]}  bxc6 {[%clk 0:02:46]} 9. Nxe5 {[%clk 0:02:45]}  Bd7 {[%clk 0:02:41]} 10. Bg5 {[%clk 0:02:35]}  f6 {[%clk 0:02:10]} 11. Qh5+ {[%clk 0:02:32]}  Kf8 {[%clk 0:02:11]} 12. Ng6+ {[%clk 0:02:28]}  hxg6 {[%clk 0:02:06]} 13. Qxh8+ {[%clk 0:02:29]}  Kf7 {[%clk 0:02:06]} 14. Qxd8 {[%clk 0:02:29]}  Rxd8 {[%clk 0:02:05]} 15. Bf4 {[%clk 0:02:30]}  g5 {[%clk 0:02:03]} 16. Bxd6 {[%clk 0:02:27]}  Bxd6 {[%clk 0:02:03]} 17. Nd2 {[%clk 0:02:24]}  Rh8 {[%clk 0:02:01]} 18. g3 {[%clk 0:02:22]}  g4 {[%clk 0:02:00]} 19. d4 {[%clk 0:02:21]}  Bf5 {[%clk 0:01:55]} 20. c3 {[%clk 0:02:21]}  Rb8 {[%clk 0:01:55]} 21. b4 {[%clk 0:02:21]}  Bd7 {[%clk 0:01:32]} 22. Nb3 {[%clk 0:02:20]}  Rh8 {[%clk 0:01:24]} 23. Nc5 {[%clk 0:02:18]}  Bc8 {[%clk 0:01:24]} 24. Re3 {[%clk 0:02:15]}  f5 {[%clk 0:01:21]} 25. f4 {[%clk 0:02:10]}  gxf3 {[%clk 0:01:11]} 26. Rxf3 {[%clk 0:02:10]}  g5 {[%clk 0:01:11]} 27. Re1 {[%clk 0:01:41]}  Kg6 {[%clk 0:00:45]} 28. Nd3 {[%clk 0:01:38]}  Kf6 {[%clk 0:00:26]} 29. Ne5 {[%clk 0:01:36]}  Bb7 {[%clk 0:00:23]} 30. Nd7+ {[%clk 0:01:35]}  Kg6 {[%clk 0:00:20]} 31. Nc5 {[%clk 0:01:29]}  Bc8 {[%clk 0:00:19]} 32. Nd3 {[%clk 0:01:27]}  Bb7 {[%clk 0:00:19]} 33. Re6+ {[%clk 0:01:21]}  Kf7 {[%clk 0:00:19]} 34. Re2 {[%clk 0:01:07]}  Kf6 {[%clk 0:00:20]} 35. Rfe3 {[%clk 0:01:07]}  Ba6 {[%clk 0:00:19]} 36. Rf2 {[%clk 0:01:05]}  Bc4 {[%clk 0:00:17]} 37. Ne5 {[%clk 0:01:04]}  Bb5 {[%clk 0:00:13]} 38. Ng4+ {[%clk 0:01:04]}  Kg6 {[%clk 0:00:13]} 39. Re6+ {[%clk 0:01:03]}  Kf7 {[%clk 0:00:13]} 40. Rf6+ {[%clk 0:01:04]}  Kg7 {[%clk 0:00:13]} 41. R2xf5 {[%clk 0:01:04]}  Re8 {[%clk 0:00:14]} 42. Rxg5+ {[%clk 0:01:03]}  Kh7 {[%clk 0:00:13]} 43. Rh6# {[%clk 0:01:04]} 1-0


[Site "https://www.chess.com"]